bitfinex-derivatives/quotes_ETHF0:USTF0_20241129
["timestamp","ask_amount","ask_price","bid_price","bid_amount"]
[1732853218083,0.27891,3584.9,3584.7,0.8761]
[1732853218292,0.2789,3585.0,3584.7,0.8761]
[1732853218583,0.27891,3584.9,3584.7,0.8761]
[1732853219687,3.6203,3585.4,3584.8,1.02631301]
[1732853219887,0.27888,3585.2,3585.1,1.02631301]
[1732853220684,0.27888,3585.3,3585.1,1.02631301]
[1732853220894,0.27888,3585.2,3585.1,1.02631301]
[1732853221983,0.27889,3585.1,3584.9,1.02631301]
[1732853225786,0.27889,3585.0,3584.9,1.02631301]
[1732853226600,3.4866,3586.2,3585.7,0.27883]
[1732853226896,4.23411301,3586.2,3585.8,0.8417]
[1732853227193,1.02631301,3586.0,3585.3,3.2078]
[1732853227390,0.27886,3585.4,3585.3,3.2078]
[1732853227888,1.02631301,3585.8,3585.3,3.2078]
[1732853227889,0.27885,3585.6,3585.3,3.2078]
[1732853228086,0.27886,3585.5,3585.3,3.2078]
[1732853228285,0.27886,3585.5,3585.2,1.02631301]
[1732853228482,0.4303,3585.4,3585.2,1.02631301]
[1732853229589,0.4303,3585.4,3585.3,0.4331]
[1732853229783,3.91774,3585.8,3585.3,0.4331]
[1732853229992,0.27884,3585.7,3585.4,1.46511301]
[1732853230287,4.0692,3585.8,3585.4,1.74397301]
[1732853230594,4.34803,3585.8,3585.4,1.74397301]
[1732853230789,0.27884,3585.7,3585.4,1.46511301]
[1732853231292,4.34803,3585.8,3585.4,1.46511301]
[1732853231493,0.27884,3585.7,3585.4,1.46511301]
[1732853231690,4.34803,3585.8,3585.4,1.46511301]
[1732853231888,0.27884,3585.7,3585.4,0.4388]
[1732853232093,4.0692,3585.8,3585.4,0.4388]
[1732853232291,4.34804,3585.8,3585.4,0.4388]
[1732853232796,0.27884,3585.7,3585.4,0.4388]
[1732853234794,4.0692,3585.8,3585.4,1.46511301]
[1732853234985,3.2078,3585.8,3585.7,0.27884]
[1732853235192,0.4202,3585.9,3585.8,0.27883]
[1732853235493,0.4202,3585.9,3585.8,0.4324]
[1732853235696,0.4202,3585.9,3585.8,0.71123]
[1732853236083,0.4202,3585.9,3585.8,0.4324]
[1732853236285,0.4202,3585.9,3585.7,0.434]
[1732853236489,0.4202,3585.9,3585.7,0.814]
[1732853240496,0.4202,3585.9,3585.7,1.09284]
[1732853240692,0.4202,3585.9,3585.8,0.27883]
[1732853240895,0.4202,3585.9,3585.7,0.71284]
[1732853241097,0.4202,3585.9,3585.7,4.764]
[1732853243194,0.4202,3585.9,3585.7,0.434]
[1732853243893,3.2078,3586.1,3585.7,0.434]
[1732853244094,3.2078,3586.1,3585.7,5.07284]
[1732853244795,0.27881,3586.1,3585.7,5.07284]
[1732853245098,0.4481,3586.2,3585.7,5.07284]
[1732853245301,0.7269,3586.2,3585.7,5.07284]
[1732853245595,0.4481,3586.2,3585.7,5.07284]
[1732853245799,0.7269,3586.2,3585.7,4.794]
[1732853246197,0.7269,3586.2,3585.8,0.27883]
[1732853246698,0.27881,3586.1,3585.7,0.71284]
[1732853246892,0.27881,3586.1,3585.7,5.19284]
[1732853247298,1.02631301,3586.1,3585.7,0.434]
[1732853247591,1.02631301,3585.8,3585.4,3.2078]
[1732853247792,0.27885,3585.6,3585.2,0.8735]
[1732853247999,1.30516301,3585.6,3585.2,1.4235]
[1732853248387,1.30516301,3585.6,3585.2,1.70238]
[1732853248594,1.30516301,3585.6,3585.2,1.4235]
[1732853249495,0.27887,3585.3,3585.1,6.57435849]
[1732853249697,0.27888,3585.2,3585.0,6.97965849]
[1732853249903,0.69248,3585.2,3585.0,6.97965849]
[1732853250200,0.69248,3585.2,3585.0,0.4053]
[1732853250389,0.69248,3585.2,3585.0,6.97965849]
[1732853250597,0.4136,3585.2,3585.0,6.97965849]
[1732853250795,0.27889,3585.1,3585.0,6.97965849]
[1732853251006,0.27889,3585.1,3585.0,12.83742123]
[1732853251499,0.27889,3585.1,3585.0,12.83907568]
[1732853251801,0.4136,3585.2,3585.0,12.83907568]
[1732853252099,0.69248,3585.2,3585.0,6.97965849]
[1732853252294,0.69248,3585.2,3585.1,5.84064528]
[1732853254393,0.4136,3585.2,3585.1,12.41487274]
[1732853255999,1.02631301,3585.6,3585.1,12.41487274]
[1732853256200,0.27887,3585.4,3585.2,5.84051425]
[1732853256399,0.27887,3585.4,3585.1,6.57435849]
[1732853256700,1.43821301,3585.6,3585.1,6.57435849]
[1732853257097,0.27887,3585.4,3585.1,6.57435849]
[1732853257400,1.43821301,3585.6,3585.2,5.84243333]
[1732853257591,1.43821301,3585.6,3585.1,6.57435849]
[1732853257797,0.27901863,3585.5,3585.2,5.84257213]
[1732853257997,3.2078,3585.9,3585.3,1.02631301]
[1732853258306,3.2078,3585.9,3585.5,1.30516301]
[1732853258494,3.2078,3585.9,3585.6,0.4472]
[1732853259606,3.2078,3585.9,3585.6,0.72605]
[1732853260300,3.2078,3585.9,3585.6,0.72604]
[1732853260700,3.2078,3585.9,3585.6,0.4472]
[1732853260907,3.2078,3585.9,3585.6,4.82670105]
[1732853261101,3.2078,3585.9,3585.7,4.37950105]
[1732853261307,3.2078,3585.9,3585.6,4.82670105]
[1732853261812,3.2078,3585.9,3585.7,4.37950105]
[1732853262407,3.2078,3585.9,3585.6,0.4472]
[1732853262599,3.2078,3585.9,3585.6,0.72604]
[1732853263000,3.2078,3585.9,3585.6,0.4472]
[1732853263306,3.2078,3585.9,3585.7,4.37884537]
[1732853264901,3.2078,3585.9,3585.8,0.4387]
[1732853267203,0.27899216,3586.0,3585.8,0.4387]
[1732853267407,0.27899216,3586.0,3585.8,5.09637537]
[1732853268009,0.27899216,3586.0,3585.8,4.81754537]
[1732853268512,2.19410301,3586.3,3585.9,4.65766537]
[1732853268911,2.19410301,3586.3,3586.0,0.4136]
[1732853269915,0.2788,3586.2,3586.0,0.4136]
[1732853270612,4.84142602,3586.1,3585.6,1.24394537]
[1732853270811,4.23411301,3585.7,3585.2,6.97436806]
[1732853271116,1.02631301,3585.4,3585.2,0.4061]
[1732853271416,0.8639,3585.6,3585.2,0.4061]
[1732853271627,0.4482,3585.6,3585.2,13.81216806]
[1732853272007,0.4482,3585.6,3585.3,5.76295939]
[1732853272317,0.4482,3585.6,3585.2,10.18216806]
[1732853272512,0.27883,3585.8,3585.3,12.33146933]
[1732853272712,0.27883,3585.8,3585.4,5.76277392]
[1732853272915,5.82827896,3585.9,3585.3,6.56826806]
[1732853273109,0.27884,3585.7,3585.3,6.56826806]
[1732853273320,0.27885,3585.6,3585.3,6.56826806]
[1732853273815,0.27885,3585.6,3585.4,5.76285625]
[1732853274011,0.27885,3585.6,3585.3,6.56826806]
[1732853274212,0.27885,3585.6,3585.4,5.76272471]
[1732853274517,0.27885,3585.6,3585.3,6.56826806]
[1732853274719,0.27885,3585.6,3585.4,5.76287992]
[1732853275023,0.27885,3585.6,3585.3,6.56826806]
[1732853275316,0.27885,3585.6,3585.4,5.76291381]
[1732853275520,0.27885,3585.6,3585.3,6.56826806]
[1732853275712,0.27886,3585.5,3585.3,6.56826806]
[1732853276514,0.27886,3585.4,3585.3,6.56826806]
[1732853276722,0.27886,3585.4,3585.3,12.33094613]
[1732853278019,0.27886,3585.4,3585.3,5.76267807]
[1732853278212,0.27886,3585.4,3585.3,12.33094613]
[1732853278417,0.27886,3585.4,3585.3,5.76267807]
[1732853279817,4.38626595,3585.8,3585.2,6.97436806]
[1732853280019,0.27887,3585.3,3585.2,11.42436806]
[1732853280219,0.27887,3585.3,3585.2,17.18637777]
[1732853280918,4.38626595,3585.8,3585.2,16.33816429]
[1732853281112,3.2078,3586.0,3585.7,0.27883]
[1732853281422,3.2078,3586.0,3585.8,1.2891]
[1732853281610,3.48662,3586.0,3585.8,1.2891]
[1732853281816,3.2078,3586.0,3585.8,1.2891]
[1732853282019,0.27882,3585.9,3585.8,1.2891]
[1732853283323,0.27882,3585.9,3585.8,0.443]
[1732853283712,0.27885,3585.6,3585.5,6.5679487]
[1732853283914,4.38626595,3585.7,3585.1,6.5679487]
[1732853284224,0.27887,3585.3,3585.2,5.76440884]
[1732853284427,0.428,3585.5,3585.2,5.76440196]
[1732853284717,0.27888,3585.2,3585.1,6.5679487]
[1732853284920,0.27888,3585.2,3585.1,12.33338064]
[1732853288212,0.4094,3585.4,3585.1,12.33338064]
[1732853288420,0.27888,3585.2,3585.1,6.5679487]
[1732853288621,0.27888,3585.2,3585.1,12.33286914]
[1732853288819,0.4227,3585.3,3585.1,12.33286914]
[1732853289120,0.27885,3585.6,3585.3,0.27886]
[1732853289310,0.27885,3585.6,3585.4,0.8442]
[1732853289519,0.27885,3585.6,3585.4,1.2659]
[1732853290018,5.25106595,3585.8,3585.4,1.2659]
[1732853290222,0.27885,3585.5,3585.4,1.2659]
[1732853291514,5.25106595,3585.8,3585.4,1.2659]
[1732853291922,0.27885,3585.5,3585.4,1.2659]
[1732853293821,5.25106595,3585.8,3585.4,1.2659]
[1732853294131,0.27885,3585.6,3585.4,1.2659]
[1732853294723,5.36679356,3585.8,3585.4,5.4259]
[1732853294922,5.07169595,3585.9,3585.5,0.27885]
[1732853295119,4.38626595,3585.9,3585.4,7.8338487]
[1732853295320,4.38626595,3586.1,3585.5,12.31526643]
[1732853295533,4.38626595,3586.1,3585.6,5.74731773]
[1732853295732,0.27883,3585.9,3585.6,4.39]
[1732853296232,4.38626595,3586.1,3585.6,4.39]
[1732853296233,0.27884,3585.7,3585.6,4.39]
[1732853296724,0.27883,3585.8,3585.6,4.39]
[1732853296927,4.38626595,3586.0,3585.6,4.39]
[1732853297122,4.38626595,3586.0,3585.4,7.8338487]
[1732853297330,0.27885,3585.6,3585.4,10.7038487]
[1732853297532,0.27885,3585.6,3585.4,4.1359]
[1732853297723,0.27885,3585.5,3585.4,10.7038487]
[1732853297925,0.27885,3585.5,3585.4,1.2659]
[1732853298625,0.27885,3585.5,3585.4,0.4217]
[1732853299027,0.4292,3585.7,3585.2,6.5679487]
[1732853299324,0.27887,3585.3,3585.2,6.9797487]
[1732853299529,0.27887,3585.3,3585.2,12.72948997]
[1732853300330,0.27887,3585.3,3585.2,12.72945261]
[1732853301328,4.81546595,3585.7,3585.2,12.72945261]
[1732853301526,0.27887,3585.4,3585.2,6.9797487]
[1732853301729,0.27887,3585.4,3585.3,5.74962117]
[1732853302728,0.27887,3585.3,3585.2,6.9797487]
[1732853302929,0.27887,3585.3,3585.2,6.16149998]
[1732853304029,0.27887,3585.3,3585.2,0.4118]
[1732853304230,7.17586595,3585.3,3584.7,6.5679487]
[1732853304434,0.27892,3584.6,3584.5,6.5679487]
[1732853304731,0.27892,3584.6,3584.5,5.75157755]
[1732853305138,0.27892,3584.6,3584.4,6.5679487]
[1732853305333,0.27892,3584.7,3584.4,6.5679487]
[1732853305836,0.27892,3584.6,3584.5,5.77973139]
[1732853306031,0.27892,3584.6,3584.3,7.8265487]
[1732853306328,0.27892,3584.6,3584.3,1.7086]
[1732853307530,0.27892,3584.6,3584.3,1.2586]
[1732853307728,0.27892,3584.6,3584.3,2.4086]
[1732853308032,3.2078,3584.9,3584.3,2.4086]
[1732853308235,0.27892,3584.7,3584.4,0.27894]
[1732853309026,0.27892,3584.7,3584.3,1.53754]
[1732853309234,0.27892,3584.7,3584.3,5.26754]
[1732853309828,0.27892,3584.7,3584.3,4.9886]
[1732853310226,3.2078,3584.9,3584.3,4.9886]
[1732853310832,0.27892,3584.7,3584.3,4.9886]
[1732853311138,3.2078,3584.9,3584.3,5.26755]
[1732853311331,3.2078,3584.9,3584.3,4.9886]
[1732853311531,0.27892,3584.7,3584.3,4.9886]
[1732853312834,0.27893,3584.6,3584.3,4.9886]
[1732853313342,0.27893,3584.6,3584.3,5.26755]
[1732853313640,0.27892,3584.7,3584.3,5.26755]
[1732853314529,0.27892,3584.7,3584.3,5.26754]
[1732853314730,5.65536595,3585.2,3584.3,5.26754]
[1732853314731,5.65536595,3585.2,3584.3,4.9886]
[1732853314940,0.27892,3584.7,3584.3,5.26754]
[1732853315937,0.27893,3584.6,3584.3,1.2586]
[1732853316142,0.71783,3584.6,3584.3,1.2586]
[1732853317236,0.27894,3584.5,3584.3,1.2586]
[1732853317738,0.27892,3584.7,3584.3,1.53754]
[1732853317939,0.27893,3584.6,3584.3,1.2586]
[1732853319145,0.27892,3584.7,3584.3,1.53755]
[1732853319343,0.27893,3584.6,3584.3,1.53755]
[1732853320842,0.27893,3584.6,3584.3,1.2586]
[1732853324541,0.27894,3584.4,3584.1,0.27896]
[1732853324843,0.27896,3584.1,3584.0,9.76905735]
[1732853325043,0.27896,3584.1,3584.0,10.17905735]
[1732853325444,0.27896,3584.1,3584.0,9.76905735]
[1732853325648,0.27896,3584.2,3584.0,9.76905735]
[1732853325848,0.27896,3584.1,3584.0,9.76905735]
[1732853326748,4.0573,3584.5,3584.0,9.76905735]
[1732853327045,0.27896,3584.2,3584.0,9.76905735]
[1732853327350,0.27896,3584.1,3584.0,6.56125735]
[1732853327751,0.27897,3584.0,3583.9,1.2333]
[1732853327943,6.18149623,3584.5,3583.9,1.2333]
[1732853327944,0.27897,3584.1,3583.9,1.51228]
[1732853328252,0.27897,3584.1,3583.9,1.2333]
[1732853328746,0.27897,3584.1,3583.9,1.51228]
[1732853328946,6.18149623,3584.5,3583.9,1.51227]
[1732853329244,0.27896,3584.1,3583.9,1.51227]
[1732853330049,4.0573,3584.5,3583.9,1.2333]
[1732853330246,0.27894,3584.4,3584.1,0.27896]
[1732853330439,0.27895,3584.3,3584.1,0.27896]
[1732853330951,0.27895,3584.3,3584.0,0.27897]
[1732853331251,3.2078,3584.5,3583.9,1.51227]
[1732853331441,0.27895,3584.3,3584.0,0.27897]
[1732853332152,3.2078,3584.5,3584.0,0.27897]
[1732853332544,0.27895,3584.3,3584.0,0.27897]
[1732853332940,0.27895,3584.3,3583.9,1.51227]
[1732853333646,3.2078,3584.5,3583.9,1.2333]
[1732853333848,0.27892,3584.7,3584.1,2.12419623]
[1732853334051,0.27893,3584.6,3584.2,0.27895]
[1732853334253,0.27893,3584.5,3584.2,4.21895]
[1732853334850,0.27892,3584.7,3584.3,0.27894]
[1732853335149,0.27892,3584.7,3584.3,4.49894]
[1732853335454,0.27892,3584.6,3584.4,0.4072]
[1732853335649,0.27892,3584.7,3584.5,0.8704]
[1732853336347,0.27892,3584.6,3584.5,0.8704]
[1732853336546,0.27892,3584.7,3584.5,0.8704]
[1732853337254,0.27892,3584.6,3584.5,0.8704]
[1732853337451,0.27906145,3584.8,3584.5,0.8704]
[1732853337755,0.27892,3584.7,3584.5,0.8704]
[1732853337952,0.27892,3584.6,3584.5,0.8704]
[1732853339053,1.3065942,3584.6,3584.5,0.8704]
[1732853340956,1.0276742,3584.6,3584.5,0.8704]
[1732853342559,0.27892,3584.7,3584.5,0.8704]
[1732853343354,4.37952983,3585.2,3584.5,5.8880742]
[1732853343561,3.2078,3585.3,3584.5,5.13933]
[1732853343562,0.27891,3584.8,3584.5,5.13933]
[1732853343754,0.27892,3584.6,3584.5,4.8604]
[1732853344556,1.0276742,3584.7,3584.5,4.8604]
[1732853345157,1.3065942,3584.7,3584.5,4.8604]
[1732853345554,1.09421,3584.8,3584.5,5.13933]
[1732853345860,0.27892,3584.7,3584.5,4.8604]
[1732853346057,1.3065942,3584.7,3584.5,4.8604]
[1732853346960,1.09421,3584.8,3584.5,5.13933]
[1732853348256,1.09421,3584.8,3584.5,1.14933]
[1732853349160,0.27892,3584.7,3584.5,1.14933]
[1732853350560,0.27892,3584.7,3584.5,0.8704]
[1732853350765,0.27892,3584.6,3584.5,0.8704]
[1732853350960,0.27892,3584.6,3584.5,0.4228]
[1732853351862,1.0276742,3584.7,3584.4,0.4072]
[1732853352057,0.27893,3584.5,3584.4,0.4072]
[1732853352859,1.3066042,3584.5,3584.4,0.4072]
[1732853353565,4.5144042,3584.5,3584.4,0.4072]
[1732853354176,4.5144042,3584.5,3584.2,6.98845735]
[1732853354177,4.2354742,3584.5,3584.1,6.56125735]
[1732853354356,0.27896,3584.1,3584.0,7.39825735]
[1732853354559,0.27896,3584.1,3584.0,6.59855825]
[1732853354761,0.27896,3584.1,3584.0,0.837]
[1732853355256,1.3066342,3584.1,3584.0,0.837]
[1732853355762,1.3066342,3584.1,3584.0,0.4279]
[1732853359468,0.27897,3584.0,3583.9,0.4094]
[1732853359670,0.27899,3583.8,3583.7,0.4246]
[1732853359869,1.3066642,3583.8,3583.7,0.4246]
[1732853360268,0.279,3583.6,3583.5,0.4443]
[1732853360463,1.3066742,3583.6,3583.5,0.4443]
[1732853360770,0.27903,3583.3,3583.2,0.4089]
[1732853361069,1.3067042,3583.3,3583.2,0.4089]
[1732853361273,4.2354742,3583.3,3583.0,0.02119]
[1732853361473,1.3067142,3583.1,3583.0,0.02119]
[1732853361671,1.3067142,3583.1,3582.7,6.98585735]
[1732853361672,1.0276742,3583.1,3582.7,0.4246]
[1732853361864,1.3067342,3582.9,3582.7,3.1546]
[1732853362276,1.0276742,3582.9,3582.7,3.1546]
[1732853362469,0.27905,3583.0,3582.7,3.1546]
[1732853363571,0.27905,3583.0,3582.7,0.4246]
[1732853363873,1.0276742,3583.1,3582.7,0.4246]
[1732853364078,3.2078,3583.3,3582.7,0.4246]
[1732853364079,0.68671,3583.6,3582.9,0.27906]
[1732853364276,0.27902,3583.4,3583.0,0.4321]
[1732853364475,0.27905,3583.0,3582.5,6.84033735]
[1732853364776,1.0276742,3582.7,3582.5,0.75042]
[1732853366773,1.4563742,3582.9,3582.5,0.75042]
[1732853366970,1.4563742,3582.9,3582.5,0.02424]
[1732853367170,3.48688,3582.6,3582.5,0.02424]
[1732853367378,3.2078,3582.6,3582.5,0.02424]
[1732853367772,1.3067542,3582.7,3582.5,0.02424]
[1732853368167,2.12807074,3582.8,3582.5,0.02424]
[1732853368376,0.27908,3582.6,3582.5,0.02424]
[1732853369682,3.48688,3582.6,3582.5,0.02424]
[1732853369880,6.27808,3582.6,3582.5,0.02424]
[1732853370081,3.48688,3582.6,3582.5,0.02424]
[1732853370979,6.27808,3582.6,3582.5,0.02424]
[1732853379991,0.27912,3582.1,3582.0,0.886]
[1732853380389,2.40719074,3582.1,3582.0,0.886]
[1732853381688,0.27912,3582.1,3582.0,0.886]
[1732853384787,0.27912,3582.1,3581.4,0.27917]
[1732853384788,4.92007074,3582.1,3581.4,0.27917]
[1732853384989,0.27916,3581.6,3581.5,0.4043]
[1732853387287,3.07116,3581.6,3581.5,0.4043]
[1732853387695,0.27917,3581.5,3581.4,0.4254]
[1732853388894,3.2078,3581.7,3581.4,0.4254]
[1732853389099,3.48695,3581.7,3581.4,0.70457]
[1732853389497,3.2078,3581.7,3581.4,0.4254]
[1732853389997,0.27912,3582.1,3581.5,0.27917]
[1732853390193,2.12807074,3582.2,3581.4,0.4254]
[1732853390398,0.27915,3581.8,3581.4,0.70457]
[1732853390600,0.27915,3581.8,3581.5,0.27917]
[1732853390896,0.27914,3581.9,3581.5,0.27917]
[1732853391097,2.12807074,3582.1,3581.4,0.4254]
[1732853391294,0.27914,3581.9,3581.5,0.27916]
[1732853392301,1.02936495,3581.7,3581.4,0.4254]
[1732853392500,1.02936495,3581.7,3581.5,0.27916]
[1732853392994,1.02936495,3581.7,3581.4,0.4254]
[1732853393204,1.02936495,3581.7,3581.5,0.27916]
[1732853393393,1.02936495,3581.7,3581.4,0.4254]
[1732853393597,1.02936495,3581.7,3581.6,0.27916]
[1732853394999,1.02936495,3581.7,3581.4,0.4254]
[1732853395305,1.02936495,3581.7,3581.5,0.27916]
[1732853395595,1.02936495,3581.7,3581.4,0.70457]
[1732853395800,1.30851495,3581.7,3581.4,1.99457]
[1732853396198,1.02936495,3581.7,3581.4,1.99457]
[1732853396702,1.02936495,3581.7,3581.4,1.7154]
[1732853396898,1.02936495,3581.7,3581.5,0.27917]
[1732853397294,1.02936495,3581.7,3581.4,0.4254]
[1732853397494,1.02936495,3581.7,3581.5,0.27917]
[1732853398893,1.02936495,3581.7,3581.4,0.4254]
[1732853399097,1.02936495,3581.5,3581.4,0.4254]
[1732853399899,3.2078,3582.0,3581.4,0.4254]
[1732853400203,1.02936495,3581.8,3581.6,0.27915]
[1732853401096,3.48693,3582.0,3581.4,0.4254]
[1732853401294,3.2078,3582.0,3581.7,0.27915]
[1732853401500,4.23716495,3582.0,3581.8,0.4335]
[1732853401703,4.23716495,3582.0,3581.8,5.2399]
[1732853402097,4.51629495,3582.0,3581.8,5.2399]
[1732853402401,4.23716495,3582.0,3581.8,5.2399]
[1732853403406,4.51629495,3582.0,3581.8,5.2399]
[1732853403606,4.23716495,3582.0,3581.8,5.2399]
[1732853403809,4.23716495,3582.0,3581.8,5.51904]
[1732853404109,4.23716495,3582.0,3581.8,5.2399]
[1732853404507,4.23716495,3582.0,3581.8,0.8599]
[1732853404804,4.67756495,3582.0,3581.8,0.8599]
[1732853405006,1.02936495,3581.9,3581.8,1.13904]
[1732853405208,1.02936495,3581.9,3581.8,0.8599]
[1732853407918,3.2078,3582.0,3581.8,1.13904]
[1732853408100,1.02936495,3581.9,3581.8,1.13904]
[1732853408304,1.02936495,3581.9,3581.8,0.8599]
[1732853408712,1.02936495,3581.9,3581.8,1.13904]
[1732853409905,0.27929917,3582.3,3582.0,0.27912]
[1732853410108,0.55839917,3582.3,3582.1,0.4463]
[1732853410422,0.55840917,3582.3,3582.1,0.4463]
[1732853411812,0.27929917,3582.3,3582.1,0.4463]
[1732853412010,1.02936495,3582.2,3582.1,0.72542]
[1732853412216,1.02936495,3582.2,3582.1,0.4463]
[1732853412715,1.30847495,3582.2,3582.1,0.4463]
[1732853413016,1.30847495,3582.2,3581.9,4.35739741]
[1732853413212,1.30847495,3582.2,3581.9,4.79739741]
[1732853413409,1.02936495,3582.0,3581.8,4.78379741]
[1732853413713,1.02936495,3582.0,3581.5,4.35739741]
[1732853413909,0.27917,3581.4,3581.3,4.35739741]
[1732853414216,0.27918,3581.3,3581.1,4.78869741]
[1732853414409,1.13268,3581.3,3581.1,4.78869741]
[1732853414713,0.8535,3581.3,3581.1,5.06789741]
[1732853414911,0.8535,3581.3,3581.2,0.27919]
[1732853415518,0.8535,3581.3,3581.1,5.06789741]
[1732853415809,0.27919,3581.2,3581.1,4.78869741]
[1732853416011,0.8535,3581.3,3581.1,4.78869741]
[1732853416218,0.8535,3581.3,3581.1,5.06789741]
[1732853416513,1.13268,3581.3,3581.1,4.78869741]
[1732853418514,0.8535,3581.3,3581.1,5.06788741]
[1732853419214,0.8535,3581.3,3581.1,4.78869741]
[1732853419719,1.13268,3581.3,3581.1,4.78869741]
[1732853420108,0.8535,3581.3,3581.1,4.78869741]
[1732853420316,0.27918,3581.4,3581.1,5.06788741]
[1732853420511,0.4076,3581.5,3581.1,5.81806236]
[1732853420820,0.4076,3581.5,3581.1,6.09725236]
[1732853421114,0.8345,3581.9,3581.3,1.30854495]
[1732853421308,1.86386495,3581.9,3581.3,5.38676236]
[1732853421512,1.86386495,3581.9,3581.3,4.35739741]
[1732853421818,0.27914,3581.8,3581.4,0.27917]
[1732853422014,0.27915,3581.7,3581.3,4.63657741]
[1732853422515,0.27915,3581.8,3581.4,0.27917]
[1732853422713,0.27915,3581.8,3581.5,0.4157]
[1732853423114,0.27915,3581.8,3581.6,0.4311]
[1732853423317,0.27912,3582.1,3581.7,1.30850495]
[1732853423510,0.27914,3581.9,3581.6,0.4311]
[1732853424116,0.27914,3581.9,3581.6,0.71026]
[1732853424310,0.27915,3581.8,3581.6,0.4311]
[1732853424511,0.27914,3581.9,3581.6,0.4311]
[1732853424719,1.30849495,3582.0,3581.6,0.71025]
[1732853425316,1.30849495,3582.0,3581.6,0.4311]
[1732853425520,1.02936495,3582.0,3581.6,0.71025]
[1732853425716,1.30849495,3582.0,3581.7,0.27915]
[1732853426822,1.02936495,3582.0,3581.8,0.27914]
[1732853427408,0.27912,3582.1,3581.8,0.27914]
[1732853428618,0.68811,3582.2,3581.9,0.27913]
[1732853428915,0.409,3582.2,3581.9,0.27913]
[1732853429714,0.68812,3582.2,3581.8,4.35739741]
[1732853429911,0.68812,3582.2,3581.9,0.27913]
[1732853430216,0.27912,3582.1,3581.8,4.63653741]
[1732853431414,0.68812,3582.2,3581.8,4.63653741]
[1732853431614,0.27912,3582.1,3581.8,4.63653741]
[1732853432013,1.43836495,3582.2,3581.8,4.63653741]
[1732853432422,3.2078,3582.4,3582.1,0.27912]
[1732853432720,3.2078,3582.4,3582.3,0.2791]
[1732853433120,3.2078,3582.4,3582.2,5.62559741]
[1732853433424,3.2078,3582.4,3582.2,5.90470741]
[1732853434019,4.23716495,3582.4,3582.2,5.90470741]
[1732853434721,1.02936495,3582.8,3582.2,13.54276236]
[1732853434918,3.2078,3583.0,3582.4,1.02936495]
[1732853435116,4.23716495,3583.0,3582.7,0.27906]
[1732853435428,4.23716495,3583.0,3582.9,0.27906]
[1732853435616,4.23716495,3583.0,3582.8,0.8666]
[1732853435818,4.23716495,3583.0,3582.9,0.4427]
[1732853436822,4.51621495,3583.0,3582.9,0.4427]
[1732853439323,4.51621495,3583.0,3582.5,0.27908]
[1732853439324,4.23716495,3583.0,3582.5,0.27908]
[1732853439525,1.02936495,3582.6,3582.5,0.70108]
[1732853440324,1.30844495,3582.6,3582.5,0.422]
[1732853440928,1.75384495,3582.6,3582.5,0.422]
[1732853441523,1.47476495,3582.6,3582.5,0.422]
[1732853441817,1.75384495,3582.6,3582.5,0.422]
[1732853442217,0.2791,3582.4,3582.1,0.27911]
[1732853442529,1.02936495,3582.3,3582.1,1.61611]
[1732853442724,1.02936495,3582.3,3582.2,0.27911]
[1732853443024,1.02936495,3582.3,3582.1,1.287]
[1732853443224,1.02936495,3582.3,3582.1,1.67612]
[1732853443731,1.02936495,3582.3,3582.1,1.56612]
[1732853443934,1.30847495,3582.3,3582.1,1.287]
[1732853444124,0.27911,3582.2,3582.1,1.287]
[1732853444323,1.02936495,3582.3,3581.9,4.35739741]
[1732853444523,1.02936495,3582.0,3581.9,4.35739741]
[1732853444719,1.30849495,3582.0,3581.9,4.35739741]
[1732853445427,1.30849495,3582.0,3581.8,3.6549]
[1732853445929,1.02936495,3582.0,3581.8,3.93404]
[1732853446527,1.02936495,3582.0,3581.8,3.6549]
[1732853446728,1.30849495,3582.0,3581.8,3.6549]
[1732853446920,2.792,3581.9,3581.5,4.35739741]
[1732853447129,0.27918,3581.3,3581.2,0.00657726]
[1732853449331,0.71828,3581.3,3581.2,0.00657726]
[1732853450332,2.84812388,3581.3,3581.2,0.00657726]
[1732853450532,5.64012388,3581.3,3581.2,0.00657726]
[1732853453231,5.64012388,3581.3,3580.6,0.03475]
[1732853453232,0.27923,3580.7,3580.6,0.03475]
[1732853453435,5.61687388,3580.7,3580.6,0.03475]
[1732853453622,8.40967388,3580.7,3580.6,0.03475]
[1732853453827,8.84637388,3580.7,3580.6,0.03475]
[1732853455231,13.84637388,3580.7,3580.6,0.03475]
[1732853456231,0.6981,3580.6,3579.1,4.35739741]
[1732853456427,0.6981,3580.6,3579.0,3.48716]
[1732853456428,0.27933,3579.4,3579.0,3.48716]
[1732853456632,0.27934,3579.3,3579.0,3.2078]
[1732853456831,2.12984388,3579.4,3579.0,3.2078]
[1732853457034,0.27935,3579.2,3578.9,0.8369]
[1732853457230,0.27935,3579.2,3578.7,0.27938]
[1732853457434,3.2078,3579.4,3578.6,0.8408]
[1732853457634,3.2078,3579.4,3578.6,4.8608]
[1732853458033,3.2078,3579.4,3579.1,0.27935]
[1732853458432,3.2078,3579.4,3578.6,0.8408]
[1732853458638,0.4332,3579.6,3578.9,3.2078]
[1732853458828,0.4332,3579.6,3578.9,7.5378]
[1732853459033,0.71251,3579.6,3579.1,0.27935]
[1732853459234,0.27932,3579.5,3579.0,0.27936]
[1732853459434,0.4332,3579.6,3578.9,3.2078]
[1732853459639,0.71252,3579.6,3579.0,0.27935]
[1732853459836,0.71252,3579.6,3579.1,0.27935]
[1732853460038,0.4332,3579.6,3579.3,0.27934]
[1732853460233,3.899,3579.8,3579.4,0.4351]
[1732853460639,0.27931,3579.7,3579.4,0.4351]
[1732853460834,2.40915388,3579.7,3579.4,0.4351]
[1732853461035,0.27932,3579.5,3579.3,0.4093]
[1732853461237,0.27933,3579.4,3579.0,0.71446]
[1732853461435,0.4394,3579.4,3579.0,1.23446]
[1732853461843,0.71874,3579.4,3579.0,0.9551]
[1732853462045,0.71874,3579.4,3579.0,1.23446]